[Event "Titled Tuesday Blitz June 28 Early 2022"]
[White "Aggelis, Nikolaos"]
[Black "Bolanos, Fernando"]
[WhiteFideId "4213220"]
[BlackFideId "3304094"]
[WhiteElo "2154"]
[BlackElo "2048"]
[Result "0-1"]
[Round "05"]
[TimeControl "180+1"]
[Date "2022.06.28"]
[WhiteClock "0:00:13"]
[BlackClock "0:00:08"]

1. d4 {[%clk 0:03:00]}  Nf6 {[%clk 0:02:58]} 2. g3 {[%clk 0:03:01]}  c6 {[%clk 0:02:58]} 3. Nf3 {[%clk 0:03:00]}  d5 {[%clk 0:02:59]} 4. Bg2 {[%clk 0:03:00]}  Bf5 {[%clk 0:02:57]} 5. c4 {[%clk 0:02:59]}  e6 {[%clk 0:02:57]} 6. Qb3 {[%clk 0:02:59]}  Qb6 {[%clk 0:02:56]} 7. c5 {[%clk 0:02:59]}  Qxb3 {[%clk 0:02:54]} 8. axb3 {[%clk 0:03:00]}  Nbd7 {[%clk 0:02:54]} 9. Nc3 {[%clk 0:02:59]}  Be7 {[%clk 0:02:52]} 10. b4 {[%clk 0:02:59]}  O-O {[%clk 0:02:52]} 11. b5 {[%clk 0:02:59]}  Ne4 {[%clk 0:02:51]} 12. bxc6 {[%clk 0:02:59]}  bxc6 {[%clk 0:02:50]} 13. Ra6 {[%clk 0:02:57]}  Rfc8 {[%clk 0:02:49]} 14. Bf4 {[%clk 0:02:53]}  g5 {[%clk 0:02:26]} 15. Be3 {[%clk 0:02:48]}  g4 {[%clk 0:02:04]} 16. Nd2 {[%clk 0:02:40]}  Nxd2 {[%clk 0:01:30]} 17. Kxd2 {[%clk 0:02:38]}  Rab8 {[%clk 0:01:28]} 18. Kc1 {[%clk 0:02:20]}  e5 {[%clk 0:01:08]} 19. Rxa7 {[%clk 0:02:16]}  exd4 {[%clk 0:01:09]} 20. Bxd4 {[%clk 0:02:14]}  Bxc5 {[%clk 0:01:09]} 21. Ra4 {[%clk 0:01:43]}  Ra8 {[%clk 0:00:47]} 22. e3 {[%clk 0:01:30]}  Bxd4 {[%clk 0:00:36]} 23. exd4 {[%clk 0:01:29]}  Nb6 {[%clk 0:00:36]} 24. Rxa8 {[%clk 0:01:22]}  Rxa8 {[%clk 0:00:37]} 25. Re1 {[%clk 0:01:16]}  Nc4 {[%clk 0:00:31]} 26. Kd1 {[%clk 0:00:51]}  Bd3 {[%clk 0:00:30]} 27. Ne2 {[%clk 0:00:41]}  Nxb2+ {[%clk 0:00:16]} 28. Kd2 {[%clk 0:00:40]}  Bf5 {[%clk 0:00:15]} 29. Nc3 {[%clk 0:00:38]}  Nc4+ {[%clk 0:00:09]} 30. Ke2 {[%clk 0:00:38]}  Ra3 {[%clk 0:00:10]} 31. Rc1 {[%clk 0:00:38]}  Nb2 {[%clk 0:00:07]} 32. Nb1 {[%clk 0:00:33]}  Bd3+ {[%clk 0:00:07]} 33. Ke1 {[%clk 0:00:31]}  Ra1 {[%clk 0:00:06]} 34. Kd2 {[%clk 0:00:29]}  Rxb1 {[%clk 0:00:06]} 35. Rxb1 {[%clk 0:00:30]}  Bxb1 {[%clk 0:00:07]} 36. h3 {[%clk 0:00:30]}  gxh3 {[%clk 0:00:07]} 37. Bxh3 {[%clk 0:00:30]}  Nc4+ {[%clk 0:00:07]} 38. Kc3 {[%clk 0:00:30]}  f5 {[%clk 0:00:05]} 39. Kb4 {[%clk 0:00:28]}  Be4 {[%clk 0:00:05]} 40. Kc5 {[%clk 0:00:28]}  Na5 {[%clk 0:00:05]} 41. Kb6 {[%clk 0:00:27]}  Nb3 {[%clk 0:00:05]} 42. Kxc6 {[%clk 0:00:27]}  Nxd4+ {[%clk 0:00:06]} 43. Kd6 {[%clk 0:00:28]}  Nf3 {[%clk 0:00:06]} 44. Ke6 {[%clk 0:00:26]}  Nd4+ {[%clk 0:00:05]} 45. Ke5 {[%clk 0:00:25]}  Nf3+ {[%clk 0:00:04]} 46. Kf4 {[%clk 0:00:25]}  Ng1 {[%clk 0:00:03]} 47. Bf1 {[%clk 0:00:25]}  Kg7 {[%clk 0:00:03]} 48. Ke5 {[%clk 0:00:22]}  Kg6 {[%clk 0:00:03]} 49. Bb5 {[%clk 0:00:22]}  Kg5 {[%clk 0:00:04]} 50. Ba4 {[%clk 0:00:17]}  Nf3+ {[%clk 0:00:04]} 51. Ke6 {[%clk 0:00:16]}  Ne1 {[%clk 0:00:05]} 52. Bd1 {[%clk 0:00:16]}  Nd3 {[%clk 0:00:05]} 53. f4+ {[%clk 0:00:16]}  Kg6 {[%clk 0:00:05]} 54. Be2 {[%clk 0:00:14]}  h5 {[%clk 0:00:05]} 55. Kd6 {[%clk 0:00:13]}  Nf2 {[%clk 0:00:05]} 56. Bb5 {[%clk 0:00:13]}  Nh1 {[%clk 0:00:05]} 57. Ke6 {[%clk 0:00:12]}  Nxg3 {[%clk 0:00:05]} 58. Be8+ {[%clk 0:00:13]}  Kg7 {[%clk 0:00:05]} 59. Ke5 {[%clk 0:00:12]}  h4 {[%clk 0:00:06]} 60. Bb5 {[%clk 0:00:11]}  h3 {[%clk 0:00:06]} 61. Bc6 {[%clk 0:00:11]}  h2 {[%clk 0:00:06]} 62. Bxd5 {[%clk 0:00:12]}  Bxd5 {[%clk 0:00:07]} 63. Kd6 {[%clk 0:00:11]}  h1=Q {[%clk 0:00:08]} 64. Ke5 {[%clk 0:00:12]}  Qe4+ {[%clk 0:00:08]} 65. Kd6 {[%clk 0:00:12]}  Bb3 {[%clk 0:00:09]} 66. Kd7 {[%clk 0:00:12]}  Qe6+ {[%clk 0:00:08]} 67. Kd8 {[%clk 0:00:13]}  Qf7 {[%clk 0:00:08]} 68. Kc8 {[%clk 0:00:12]}  Bd5 {[%clk 0:00:09]} 69. Kb8 {[%clk 0:00:13]}  Qb7# {[%clk 0:00:08]} 0-1


[Site "https://www.chess.com"]

[Event "Titled Tuesday Blitz June 28 Early 2022"]
[White "Andreikin, Dmitry"]
[Black "Bortnyk, Olexandr"]
[WhiteFideId "4158814"]
[BlackFideId "14120828"]
[WhiteElo "2736"]
[BlackElo "2723"]
[Result "1-0"]
[Round "05"]
[TimeControl "180+1"]
[Date "2022.06.28"]
[WhiteClock "0:02:03"]
[BlackClock "0:00:02"]

1. d4 {[%clk 0:03:00]}  d6 {[%clk 0:02:59]} 2. e4 {[%clk 0:03:01]}  Nf6 {[%clk 0:02:59]} 3. Nc3 {[%clk 0:03:01]}  Nbd7 {[%clk 0:02:59]} 4. f4 {[%clk 0:03:00]}  e5 {[%clk 0:03:00]} 5. Be3 {[%clk 0:03:00]}  exd4 {[%clk 0:01:59]} 6. Qxd4 {[%clk 0:02:57]}  c6 {[%clk 0:01:36]} 7. O-O-O {[%clk 0:02:56]}  Ng4 {[%clk 0:01:36]} 8. Nf3 {[%clk 0:02:55]}  Nxe3 {[%clk 0:01:26]} 9. Qxe3 {[%clk 0:02:55]}  Qb6 {[%clk 0:01:26]} 10. Qe1 {[%clk 0:02:53]}  Be7 {[%clk 0:01:24]} 11. g4 {[%clk 0:02:40]}  Nc5 {[%clk 0:01:20]} 12. f5 {[%clk 0:02:35]}  Bd7 {[%clk 0:01:18]} 13. Bc4 {[%clk 0:02:28]}  f6 {[%clk 0:01:09]} 14. e5 {[%clk 0:02:18]}  fxe5 {[%clk 0:00:31]} 15. Nxe5 {[%clk 0:02:19]}  dxe5 {[%clk 0:00:19]} 16. Qxe5 {[%clk 0:02:20]}  Kf8 {[%clk 0:00:19]} 17. f6 {[%clk 0:02:20]}  gxf6 {[%clk 0:00:03]} 18. Rhf1 {[%clk 0:02:21]}  Ke8 {[%clk 0:00:02]} 19. Rxf6 {[%clk 0:02:18]}  Kd8 {[%clk 0:00:02]} 20. Nd5 {[%clk 0:02:03]} 1-0


[Site "https://www.chess.com"]

[Event "Titled Tuesday Blitz June 28 Early 2022"]
[White "Antonio, Jorge Carlos"]
[Black "Jovic, Stanoje"]
[WhiteFideId "113190"]
[BlackFideId "905020"]
[WhiteElo "2247"]
[BlackElo "2286"]
[Result "0-1"]
[Round "05"]
[TimeControl "180+1"]
[Date "2022.06.28"]
[WhiteClock "0:00:30"]
[BlackClock "0:02:03"]

1. d4 {[%clk 0:01:56]}  Nf6 {[%clk 0:02:58]} 2. Nf3 {[%clk 0:01:55]}  e6 {[%clk 0:02:58]} 3. c4 {[%clk 0:01:54]}  b6 {[%clk 0:02:58]} 4. g3 {[%clk 0:01:52]}  Ba6 {[%clk 0:02:58]} 5. b3 {[%clk 0:01:47]}  Bb4+ {[%clk 0:02:57]} 6. Bd2 {[%clk 0:01:46]}  Be7 {[%clk 0:02:57]} 7. Bg2 {[%clk 0:01:46]}  d5 {[%clk 0:02:57]} 8. Qc2 {[%clk 0:01:43]}  O-O {[%clk 0:02:53]} 9. cxd5 {[%clk 0:01:07]}  exd5 {[%clk 0:02:53]} 10. Nc3 {[%clk 0:01:03]}  c5 {[%clk 0:02:49]} 11. dxc5 {[%clk 0:01:00]}  bxc5 {[%clk 0:02:49]} 12. Ne5 {[%clk 0:00:57]}  Re8 {[%clk 0:02:38]} 13. Nxd5 {[%clk 0:00:51]}  Nxd5 {[%clk 0:02:25]} 14. Qf5 {[%clk 0:00:48]}  Bf6 {[%clk 0:02:16]} 15. Nxf7 {[%clk 0:00:44]}  Rxe2+ {[%clk 0:02:12]} 16. Kd1 {[%clk 0:00:35]}  Nc3+ {[%clk 0:02:06]} 17. Kc2 {[%clk 0:00:30]}  Qxd2# {[%clk 0:02:03]} 0-1


[Site "https://www.chess.com"]

[Event "Titled Tuesday Blitz June 28 Early 2022"]
[White "Aradhya, Garg"]
[Black "Sarkar, Justin"]
[WhiteFideId "25006746"]
[BlackFideId "2010011"]
[WhiteElo "2203"]
[BlackElo "2020"]
[Result "1-0"]
[Round "05"]
[TimeControl "180+1"]
[Date "2022.06.28"]
[WhiteClock "0:00:52"]
[BlackClock "0:00:01"]

1. d4 {[%clk 0:02:59]}  Nf6 {[%clk 0:02:53]} 2. c4 {[%clk 0:02:58]}  e6 {[%clk 0:02:49]} 3. Bg5 {[%clk 0:02:57]}  h6 {[%clk 0:02:36]} 4. Bh4 {[%clk 0:02:56]}  c5 {[%clk 0:02:32]} 5. d5 {[%clk 0:02:54]}  exd5 {[%clk 0:02:28]} 6. cxd5 {[%clk 0:02:53]}  d6 {[%clk 0:02:26]} 7. Nc3 {[%clk 0:02:52]}  a6 {[%clk 0:02:14]} 8. a4 {[%clk 0:02:48]}  g5 {[%clk 0:02:03]} 9. Bg3 {[%clk 0:02:46]}  Nh5 {[%clk 0:02:02]} 10. a5 {[%clk 0:02:42]}  Bg7 {[%clk 0:01:54]} 11. e3 {[%clk 0:02:40]}  Nxg3 {[%clk 0:01:51]} 12. hxg3 {[%clk 0:02:41]}  Nd7 {[%clk 0:01:47]} 13. Bd3 {[%clk 0:02:39]}  Ne5 {[%clk 0:01:43]} 14. Nge2 {[%clk 0:02:38]}  Nxd3+ {[%clk 0:01:32]} 15. Qxd3 {[%clk 0:02:37]}  f5 {[%clk 0:01:27]} 16. g4 {[%clk 0:02:33]}  fxg4 {[%clk 0:01:11]} 17. Qg6+ {[%clk 0:02:00]}  Kf8 {[%clk 0:01:11]} 18. f4 {[%clk 0:01:57]}  Qf6 {[%clk 0:00:50]} 19. Qc2 {[%clk 0:01:54]}  Bd7 {[%clk 0:00:21]} 20. O-O {[%clk 0:01:51]}  Kg8 {[%clk 0:00:16]} 21. Ng3 {[%clk 0:01:50]}  gxf4 {[%clk 0:00:08]} 22. Rxf4 {[%clk 0:01:48]}  Qe5 {[%clk 0:00:07]} 23. Qf2 {[%clk 0:01:36]}  h5 {[%clk 0:00:05]} 24. Nf5 {[%clk 0:01:28]}  Rf8 {[%clk 0:00:04]} 25. e4 {[%clk 0:00:55]}  Bxf5 {[%clk 0:00:03]} 26. exf5 {[%clk 0:00:56]}  Bf6 {[%clk 0:00:01]} 27. Re1 {[%clk 0:00:53]}  Qd4 {[%clk 0:00:01]} 28. Rxd4 {[%clk 0:00:52]}  Bxd4 {[%clk 0:00:01]} 29. Re3 {[%clk 0:00:52]} 1-0


[Site "https://www.chess.com"]

[Event "Titled Tuesday Blitz June 28 Early 2022"]
[White "Bachmann, Axel"]
[Black "Reprintsev, Alexander"]
[WhiteFideId "3700488"]
[BlackFideId "14100541"]
[WhiteElo "2587"]
[BlackElo "2108"]
[Result "0-1"]
[Round "05"]
[TimeControl "180+1"]
[Date "2022.06.28"]
[WhiteClock "0:00:18"]
[BlackClock "0:01:08"]

1. d4 {[%clk 0:02:55]}  d5 {[%clk 0:02:59]} 2. c4 {[%clk 0:02:55]}  e5 {[%clk 0:02:59]} 3. dxe5 {[%clk 0:02:55]}  d4 {[%clk 0:02:59]} 4. Nf3 {[%clk 0:02:55]}  Nc6 {[%clk 0:02:59]} 5. a3 {[%clk 0:02:56]}  g6 {[%clk 0:02:59]} 6. b4 {[%clk 0:02:51]}  Bg7 {[%clk 0:02:59]} 7. Bb2 {[%clk 0:02:50]}  Nh6 {[%clk 0:02:57]} 8. Nbd2 {[%clk 0:02:13]}  O-O {[%clk 0:02:54]} 9. Nb3 {[%clk 0:02:03]}  Nf5 {[%clk 0:02:53]} 10. Rc1 {[%clk 0:01:59]}  Nxe5 {[%clk 0:02:51]} 11. Nfxd4 {[%clk 0:01:58]}  Qh4 {[%clk 0:02:29]} 12. Nxf5 {[%clk 0:01:11]}  Bxf5 {[%clk 0:02:27]} 13. Nd4 {[%clk 0:01:07]}  Rad8 {[%clk 0:02:24]} 14. e3 {[%clk 0:01:06]}  c5 {[%clk 0:02:15]} 15. bxc5 {[%clk 0:01:06]}  Be4 {[%clk 0:02:14]} 16. Qb3 {[%clk 0:00:46]}  Rfe8 {[%clk 0:02:06]} 17. Rd1 {[%clk 0:00:38]}  Ng4 {[%clk 0:02:01]} 18. Rd2 {[%clk 0:00:37]}  Nxe3 {[%clk 0:01:56]} 19. g3 {[%clk 0:00:35]}  Qh6 {[%clk 0:01:46]} 20. fxe3 {[%clk 0:00:31]}  Bxh1 {[%clk 0:01:45]} 21. Re2 {[%clk 0:00:31]}  Re7 {[%clk 0:01:28]} 22. h4 {[%clk 0:00:24]}  Rde8 {[%clk 0:01:27]} 23. Kf2 {[%clk 0:00:25]}  Be4 {[%clk 0:01:19]} 24. Bh3 {[%clk 0:00:21]}  Qh5 {[%clk 0:01:18]} 25. Qb5 {[%clk 0:00:18]}  Bxd4 {[%clk 0:01:17]} 26. Bxd4 {[%clk 0:00:18]}  Qf3+ {[%clk 0:01:17]} 27. Ke1 {[%clk 0:00:19]}  Qh1+ {[%clk 0:01:15]} 28. Bf1 {[%clk 0:00:19]}  Bd3 {[%clk 0:01:15]} 29. Rf2 {[%clk 0:00:18]}  Bxf1 {[%clk 0:01:11]} 30. Rxf1 {[%clk 0:00:18]}  Qg2 {[%clk 0:01:08]} 0-1


[Site "https://www.chess.com"]

[Event "Titled Tuesday Blitz June 28 Early 2022"]
[White "Beerdsen, Thomas"]
[Black "Malyi, Viacheslav"]
[WhiteFideId "1030108"]
[BlackFideId "14123983"]
[WhiteElo "2585"]
[BlackElo "2270"]
[Result "1/2-1/2"]
[Round "05"]
[TimeControl "180+1"]
[Date "2022.06.28"]
[WhiteClock "0:02:18"]
[BlackClock "0:01:17"]

1. e4 {[%clk 0:03:00]}  e5 {[%clk 0:02:58]} 2. Nf3 {[%clk 0:03:00]}  Nc6 {[%clk 0:02:56]} 3. d4 {[%clk 0:03:01]}  exd4 {[%clk 0:02:51]} 4. Bc4 {[%clk 0:03:01]}  Nf6 {[%clk 0:02:51]} 5. O-O {[%clk 0:03:01]}  Nxe4 {[%clk 0:02:50]} 6. Nc3 {[%clk 0:03:02]}  Nxc3 {[%clk 0:02:49]} 7. bxc3 {[%clk 0:03:02]}  d5 {[%clk 0:02:49]} 8. Bb5 {[%clk 0:03:03]}  Be7 {[%clk 0:02:47]} 9. cxd4 {[%clk 0:03:04]}  O-O {[%clk 0:02:46]} 10. Bxc6 {[%clk 0:03:05]}  bxc6 {[%clk 0:02:46]} 11. Ne5 {[%clk 0:03:05]}  Bd7 {[%clk 0:02:45]} 12. Re1 {[%clk 0:03:04]}  Bd6 {[%clk 0:02:40]} 13. Qf3 {[%clk 0:03:01]}  f6 {[%clk 0:02:29]} 14. Nd3 {[%clk 0:03:01]}  Re8 {[%clk 0:02:25]} 15. Bd2 {[%clk 0:02:56]}  Rxe1+ {[%clk 0:02:23]} 16. Rxe1 {[%clk 0:02:57]}  Qf8 {[%clk 0:02:23]} 17. Bf4 {[%clk 0:02:43]}  Re8 {[%clk 0:02:20]} 18. Rb1 {[%clk 0:02:44]}  Rb8 {[%clk 0:02:19]} 19. Re1 {[%clk 0:02:43]}  Qf7 {[%clk 0:02:16]} 20. Qg3 {[%clk 0:02:37]}  Qf8 {[%clk 0:02:12]} 21. Nc5 {[%clk 0:02:31]}  Bf5 {[%clk 0:02:10]} 22. c3 {[%clk 0:02:26]}  Bxc5 {[%clk 0:02:09]} 23. dxc5 {[%clk 0:02:27]}  Re8 {[%clk 0:02:06]} 24. Rxe8 {[%clk 0:02:18]}  Qxe8 {[%clk 0:02:07]} 25. h3 {[%clk 0:02:09]}  Qg6 {[%clk 0:01:49]} 26. Bxc7 {[%clk 0:02:04]}  Qxg3 {[%clk 0:01:48]} 27. Bxg3 {[%clk 0:02:04]}  Bb1 {[%clk 0:01:46]} 28. a4 {[%clk 0:02:02]}  a5 {[%clk 0:01:38]} 29. Bc7 {[%clk 0:02:00]}  Bc2 {[%clk 0:01:38]} 30. Bxa5 {[%clk 0:02:01]}  Bxa4 {[%clk 0:01:39]} 31. f3 {[%clk 0:01:55]}  Kf7 {[%clk 0:01:37]} 32. Kf2 {[%clk 0:01:55]}  g5 {[%clk 0:01:35]} 33. Bd8 {[%clk 0:01:54]}  Kg6 {[%clk 0:01:34]} 34. g4 {[%clk 0:01:53]}  Bb5 {[%clk 0:01:34]} 35. Kg3 {[%clk 0:01:52]}  f5 {[%clk 0:01:32]} 36. f4 {[%clk 0:01:52]}  gxf4+ {[%clk 0:01:29]} 37. Kxf4 {[%clk 0:01:53]}  fxg4 {[%clk 0:01:30]} 38. hxg4 {[%clk 0:01:54]}  Bd3 {[%clk 0:01:30]} 39. Bh4 {[%clk 0:01:52]}  Bb5 {[%clk 0:01:30]} 40. Bd8 {[%clk 0:01:52]}  Bd3 {[%clk 0:01:30]} 41. Ke5 {[%clk 0:01:52]}  Be2 {[%clk 0:01:27]} 42. Kd6 {[%clk 0:01:49]}  Bb5 {[%clk 0:01:27]} 43. Bh4 {[%clk 0:01:49]}  h5 {[%clk 0:01:26]} 44. gxh5+ {[%clk 0:01:49]}  Kxh5 {[%clk 0:01:26]} 45. Bd8 {[%clk 0:01:49]}  Kg4 {[%clk 0:01:26]} 46. Bf6 {[%clk 0:01:49]}  Kf5 {[%clk 0:01:25]} 47. Bd4 {[%clk 0:01:50]}  Ke4 {[%clk 0:01:25]} 48. Bh8 {[%clk 0:01:51]}  Kd3 {[%clk 0:01:25]} 49. Bd4 {[%clk 0:01:51]}  Kc4 {[%clk 0:01:25]} 50. Kc7 {[%clk 0:01:52]}  Kd3 {[%clk 0:01:24]} 51. Kb6 {[%clk 0:01:53]}  Kc4 {[%clk 0:01:24]} 52. Kc7 {[%clk 0:01:54]}  Kd3 {[%clk 0:01:25]} 53. Kd6 {[%clk 0:01:55]}  Kc4 {[%clk 0:01:25]} 54. Ke5 {[%clk 0:01:56]}  Kd3 {[%clk 0:01:25]} 55. Kf4 {[%clk 0:01:57]}  Kc4 {[%clk 0:01:26]} 56. Ke3 {[%clk 0:01:57]}  Kb3 {[%clk 0:01:26]} 57. Be5 {[%clk 0:01:58]}  Kc4 {[%clk 0:01:26]} 58. Bd4 {[%clk 0:01:59]}  Kb3 {[%clk 0:01:26]} 59. Kd2 {[%clk 0:01:59]}  Kc4 {[%clk 0:01:26]} 60. Kc1 {[%clk 0:02:00]}  Kb3 {[%clk 0:01:26]} 61. Kb1 {[%clk 0:02:01]}  Kc4 {[%clk 0:01:26]} 62. Kc2 {[%clk 0:02:02]}  Ba4+ {[%clk 0:01:25]} 63. Kb2 {[%clk 0:02:03]}  Bb5 {[%clk 0:01:26]} 64. Kc2 {[%clk 0:02:03]}  Ba4+ {[%clk 0:01:26]} 65. Kb1 {[%clk 0:02:04]}  Bb5 {[%clk 0:01:27]} 66. Ka2 {[%clk 0:02:04]}  Kd3 {[%clk 0:01:26]} 67. Kb2 {[%clk 0:02:04]}  Kc4 {[%clk 0:01:27]} 68. Ka3 {[%clk 0:02:05]}  Ba6 {[%clk 0:01:24]} 69. Ka4 {[%clk 0:02:05]}  Bb5+ {[%clk 0:01:25]} 70. Ka5 {[%clk 0:02:06]}  Kb3 {[%clk 0:01:25]} 71. Kb6 {[%clk 0:02:06]}  Kc4 {[%clk 0:01:25]} 72. Bh8 {[%clk 0:02:05]}  Kb3 {[%clk 0:01:24]} 73. Ka5 {[%clk 0:02:05]}  Kc4 {[%clk 0:01:24]} 74. Bg7 {[%clk 0:02:05]}  Kb3 {[%clk 0:01:22]} 75. Kb6 {[%clk 0:02:06]}  Kc4 {[%clk 0:01:23]} 76. Kb7 {[%clk 0:02:07]}  Kxc5 {[%clk 0:01:18]} 77. Kc7 {[%clk 0:02:07]}  Kc4 {[%clk 0:01:18]} 78. Kb6 {[%clk 0:02:05]}  Kd3 {[%clk 0:01:16]} 79. Kc5 {[%clk 0:02:04]}  Ke4 {[%clk 0:01:16]} 80. Bh8 {[%clk 0:02:05]}  Kf5 {[%clk 0:01:16]} 81. Bd4 {[%clk 0:02:06]}  Ke6 {[%clk 0:01:16]} 82. Bh8 {[%clk 0:02:06]}  Kd7 {[%clk 0:01:16]} 83. Bd4 {[%clk 0:02:07]}  Ke7 {[%clk 0:01:17]} 84. Bh8 {[%clk 0:02:08]}  Kf7 {[%clk 0:01:17]} 85. Bd4 {[%clk 0:02:09]}  Kg8 {[%clk 0:01:17]} 86. Be5 {[%clk 0:02:10]}  Kh7 {[%clk 0:01:17]} 87. Bd4 {[%clk 0:02:11]}  Kg6 {[%clk 0:01:17]} 88. Be5 {[%clk 0:02:11]}  Kf5 {[%clk 0:01:17]} 89. Bd4 {[%clk 0:02:12]}  Ke4 {[%clk 0:01:17]} 90. Bh8 {[%clk 0:02:13]}  Kd3 {[%clk 0:01:17]} 91. Bd4 {[%clk 0:02:14]}  Kc2 {[%clk 0:01:17]} 92. Bh8 {[%clk 0:02:15]}  Kb3 {[%clk 0:01:17]} 93. Bd4 {[%clk 0:02:15]}  Ka4 {[%clk 0:01:17]} 94. Bh8 {[%clk 0:02:16]}  Kb3 {[%clk 0:01:17]} 95. Bd4 {[%clk 0:02:17]}  Kc2 {[%clk 0:01:17]} 96. Bh8 {[%clk 0:02:18]}  Kb3 {[%clk 0:01:17]} 1/2-1/2


[Site "https://www.chess.com"]

[Event "Titled Tuesday Blitz June 28 Early 2022"]
[White "Bellahcene, Bilel"]
[Black "Harsh Suresh"]
[WhiteFideId "696358"]
[BlackFideId "45018464"]
[WhiteElo "2543"]
[BlackElo "2059"]
[Result "1-0"]
[Round "05"]
[TimeControl "180+1"]
[Date "2022.06.28"]
[WhiteClock "0:00:04"]
[BlackClock "0:00:03"]

1. d4 {[%clk 0:03:00]}  Nf6 {[%clk 0:02:58]} 2. Nf3 {[%clk 0:02:54]}  c5 {[%clk 0:02:57]} 3. d5 {[%clk 0:02:51]}  e6 {[%clk 0:02:57]} 4. c4 {[%clk 0:02:52]}  exd5 {[%clk 0:02:57]} 5. cxd5 {[%clk 0:02:53]}  d6 {[%clk 0:02:57]} 6. Nc3 {[%clk 0:02:53]}  g6 {[%clk 0:02:57]} 7. h3 {[%clk 0:02:54]}  Bg7 {[%clk 0:02:57]} 8. Bf4 {[%clk 0:02:54]}  O-O {[%clk 0:02:58]} 9. e3 {[%clk 0:02:55]}  Re8 {[%clk 0:02:48]} 10. Be2 {[%clk 0:02:54]}  Na6 {[%clk 0:02:44]} 11. Nd2 {[%clk 0:02:52]}  Nc7 {[%clk 0:02:41]} 12. Nc4 {[%clk 0:02:52]}  Bf8 {[%clk 0:02:42]} 13. a4 {[%clk 0:02:52]}  b6 {[%clk 0:02:36]} 14. O-O {[%clk 0:02:50]}  Ba6 {[%clk 0:02:35]} 15. b3 {[%clk 0:02:49]}  Bxc4 {[%clk 0:02:34]} 16. bxc4 {[%clk 0:02:48]}  Bg7 {[%clk 0:02:33]} 17. Qb3 {[%clk 0:02:44]}  Nh5 {[%clk 0:02:18]} 18. Bxh5 {[%clk 0:02:30]}  gxh5 {[%clk 0:02:19]} 19. Rac1 {[%clk 0:02:15]}  Qf6 {[%clk 0:02:14]} 20. Qd1 {[%clk 0:02:10]}  Qg6 {[%clk 0:02:12]} 21. Qf3 {[%clk 0:02:08]}  Kh8 {[%clk 0:02:03]} 22. h4 {[%clk 0:01:53]}  Rad8 {[%clk 0:01:55]} 23. Ne2 {[%clk 0:01:52]}  Qg4 {[%clk 0:01:48]} 24. Ng3 {[%clk 0:01:49]}  Qxh4 {[%clk 0:01:42]} 25. Nf5 {[%clk 0:01:25]}  Qf6 {[%clk 0:01:30]} 26. Qxh5 {[%clk 0:01:20]}  Bf8 {[%clk 0:01:23]} 27. g4 {[%clk 0:01:12]}  Qg6 {[%clk 0:01:22]} 28. Bg5 {[%clk 0:00:54]}  Rd7 {[%clk 0:01:03]} 29. Qh4 {[%clk 0:00:35]}  Kg8 {[%clk 0:00:44]} 30. Bf6 {[%clk 0:00:19]}  Re4 {[%clk 0:00:19]} 31. f3 {[%clk 0:00:17]}  Ne8 {[%clk 0:00:19]} 32. Bb2 {[%clk 0:00:11]}  Ree7 {[%clk 0:00:19]} 33. Kf2 {[%clk 0:00:10]}  f6 {[%clk 0:00:14]} 34. Nxe7+ {[%clk 0:00:09]}  Rxe7 {[%clk 0:00:13]} 35. e4 {[%clk 0:00:06]}  Bh6 {[%clk 0:00:13]} 36. Rce1 {[%clk 0:00:04]}  Bg5 {[%clk 0:00:12]} 37. Qh5 {[%clk 0:00:03]}  Qxh5 {[%clk 0:00:12]} 38. gxh5 {[%clk 0:00:04]}  Ng7 {[%clk 0:00:12]} 39. Rh1 {[%clk 0:00:05]}  Bf4 {[%clk 0:00:11]} 40. Reg1 {[%clk 0:00:05]}  Kf7 {[%clk 0:00:11]} 41. Bc3 {[%clk 0:00:05]}  h6 {[%clk 0:00:11]} 42. Ke2 {[%clk 0:00:04]}  Nf5 {[%clk 0:00:10]} 43. Bd2 {[%clk 0:00:03]}  Nd4+ {[%clk 0:00:09]} 44. Kd3 {[%clk 0:00:02]}  Bxd2 {[%clk 0:00:10]} 45. Kxd2 {[%clk 0:00:03]}  Nxf3+ {[%clk 0:00:10]} 46. Kd3 {[%clk 0:00:03]}  Nxg1 {[%clk 0:00:11]} 47. Rxg1 {[%clk 0:00:04]}  Re5 {[%clk 0:00:11]} 48. Rh1 {[%clk 0:00:01]}  Rg5 {[%clk 0:00:09]} 49. Ke3 {[%clk 0:00:02]}  Rg3+ {[%clk 0:00:09]} 50. Kf4 {[%clk 0:00:02]}  Rc3 {[%clk 0:00:09]} 51. a5 {[%clk 0:00:02]}  Rxc4 {[%clk 0:00:08]} 52. axb6 {[%clk 0:00:03]}  axb6 {[%clk 0:00:08]} 53. Ra1 {[%clk 0:00:04]}  Ke7 {[%clk 0:00:06]} 54. Ra7+ {[%clk 0:00:05]}  Kd8 {[%clk 0:00:07]} 55. Kf5 {[%clk 0:00:05]}  b5 {[%clk 0:00:07]} 56. Ke6 {[%clk 0:00:05]}  b4 {[%clk 0:00:06]} 57. Kxd6 {[%clk 0:00:06]}  Kc8 {[%clk 0:00:06]} 58. Kc6 {[%clk 0:00:02]}  Kb8 {[%clk 0:00:06]} 59. Rb7+ {[%clk 0:00:02]}  Ka8 {[%clk 0:00:06]} 60. d6 {[%clk 0:00:03]}  Rxe4 {[%clk 0:00:06]} 61. Re7 {[%clk 0:00:03]}  Rd4 {[%clk 0:00:05]} 62. d7 {[%clk 0:00:03]}  b3 {[%clk 0:00:03]} 63. Re8+ {[%clk 0:00:03]}  Ka7 {[%clk 0:00:04]} 64. d8=Q {[%clk 0:00:04]}  Rxd8 {[%clk 0:00:04]} 65. Rxd8 {[%clk 0:00:05]}  b2 {[%clk 0:00:03]} 66. Rd7+ {[%clk 0:00:02]}  Ka6 {[%clk 0:00:03]} 67. Rb7 {[%clk 0:00:03]}  c4 {[%clk 0:00:03]} 68. Rxb2 {[%clk 0:00:03]}  c3 {[%clk 0:00:03]} 69. Ra2# {[%clk 0:00:04]} 1-0


[Site "https://www.chess.com"]